[Event "The Allsvenskan 2024/25 Div I 3: SS Manhem II - Lidkopings SS"]
[Site "Goteborgs Schackcentrum, Vegatan 20, Gothenburg, Sweden"]
[Date "2024.11.17"]
[Round "1.5"]
[White "Isurina Mariano, Cristine Rose"]
[Black "Lisander, Stefan"]
[Result "1-0"]
[TimeControl "90 minutes for 40 moves + 30 minutes for the rest of the game + 30 seconds per move from move one."]
[WhiteTitle "WIM"]
[WhiteFideId "5201071"]
[BlackFideId "1711733"]
[WhiteElo "1962"]
[BlackElo "2014"]

1. e4 {[%clk 01:30:52]} {[%emt 00:00:07]} c6 {[%clk 01:30:40]} {[%emt
00:00:19]} 2. d3 {[%clk 01:30:54]} {[%emt 00:00:29]} d5 {[%clk 01:30:50]}
{[%emt 00:00:20]} 3. e5 {[%clk 01:30:56]} {[%emt 00:00:28]} e6 {[%clk
01:29:03]} {[%emt 00:02:17]} 4. g3 {[%clk 01:31:09]} {[%emt 00:00:18]} c5
{[%clk 01:28:59]} {[%emt 00:00:33]} 5. Bg2 {[%clk 01:31:35]} {[%emt 00:00:05]}
Nc6 {[%clk 01:29:21]} {[%emt 00:00:07]} 6. f4 {[%clk 01:30:43]} {[%emt
00:01:22]} f6 {[%clk 01:29:19]} {[%emt 00:00:32]} 7. Nf3 {[%clk 01:30:53]}
{[%emt 00:00:21]} g6 {[%clk 01:23:32]} {[%emt 00:06:17]} 8. c3 {[%clk
01:28:49]} {[%emt 00:02:33]} Bg7 {[%clk 01:23:14]} {[%emt 00:00:48]} 9. d4
{[%clk 01:29:02]} {[%emt 00:00:18]} cxd4 {[%clk 01:23:27]} {[%emt 00:00:16]} 10.
cxd4 {[%clk 01:28:26]} {[%emt 00:01:06]} Nge7 {[%clk 01:23:51]} {[%emt
00:00:07]} 11. O-O {[%clk 01:27:57]} {[%emt 00:00:59]} Qb6 {[%clk 01:22:58]}
{[%emt 00:01:34]} 12. Kh1 {[%clk 01:27:23]} {[%emt 00:00:52]} Bd7 {[%clk
01:15:57]} {[%emt 00:07:30]} 13. Nc3 {[%clk 01:27:47]} {[%emt 00:00:07]} O-O
{[%clk 01:11:58]} {[%emt 00:04:30]} 14. b3 {[%clk 01:27:50]} {[%emt 00:00:27]}
Rac8 {[%clk 01:11:26]} {[%emt 00:01:01]} 15. Na4 {[%clk 01:27:31]} {[%emt
00:00:49]} Qc7 {[%clk 01:10:59]} {[%emt 00:00:56]} 16. Ba3 {[%clk 01:27:42]}
{[%emt 00:00:20]} b6 {[%clk 01:06:20]} {[%emt 00:05:08]} 17. Rc1 {[%clk
01:27:38]} {[%emt 00:00:35]} f5 {[%clk 01:04:18]} {[%emt 00:02:33]} 18. Bxe7
{[%clk 01:28:00]} {[%emt 00:00:07]} 1-0

[Event "The Allsvenskan 2024/25 Div I 3: SS Manhem II - Lidkopings SS"]
[Site "Goteborgs Schackcentrum, Vegatan 20, Gothenburg, Sweden"]
[Date "2024.11.17"]
[Round "1.6"]
[White "Bengtsson, Siv"]
[Black "Jonsson, Mose"]
[Result "0-1"]
[TimeControl "90 minutes for 40 moves + 30 minutes for the rest of the game + 30 seconds per move from move one."]
[WhiteFideId "1701673"]
[BlackFideId "1756885"]
[WhiteElo "1972"]
[BlackElo "1887"]

1. e4 {[%clk 01:30:39]} {[%emt 00:00:21]} c6 {[%clk 01:30:58]} {[%emt
00:00:02]} 2. d4 {[%clk 01:31:02]} {[%emt 00:00:06]} d5 {[%clk 01:31:19]}
{[%emt 00:00:10]} 3. e5 {[%clk 01:31:26]} {[%emt 00:00:06]} Bf5 {[%clk
01:31:37]} {[%emt 00:00:12]} 4. h4 {[%clk 01:31:12]} {[%emt 00:00:43]} h5
{[%clk 01:31:55]} {[%emt 00:00:13]} 5. Bd3 {[%clk 01:30:40]} {[%emt 00:01:02]}
Bxd3 {[%clk 01:31:41]} {[%emt 00:00:44]} 6. Qxd3 {[%clk 01:31:00]} {[%emt
00:00:11]} e6 {[%clk 01:31:49]} {[%emt 00:00:22]} 7. Bg5 {[%clk 01:30:58]}
{[%emt 00:00:31]} Be7 {[%clk 01:31:50]} {[%emt 00:00:30]} 8. Nf3 {[%clk
01:30:24]} {[%emt 00:01:03]} Nd7 {[%clk 01:29:39]} {[%emt 00:02:42]} 9. Nc3
{[%clk 01:27:37]} {[%emt 00:03:16]} a6 {[%clk 01:26:19]} {[%emt 00:03:51]} 10.
O-O {[%clk 01:22:45]} {[%emt 00:05:22]} c5 {[%clk 01:24:59]} {[%emt 00:01:49]}
11. dxc5 {[%clk 01:21:35]} {[%emt 00:01:40]} Nxc5 {[%clk 01:24:52]} {[%emt
00:00:37]} 12. Qe2 {[%clk 01:21:57]} {[%emt 00:00:08]} Bxg5 {[%clk 01:22:30]}
{[%emt 00:02:52]} 13. Nxg5 {[%clk 01:18:36]} {[%emt 00:03:51]} Ne7 {[%clk
01:21:22]} {[%emt 00:01:39]} 14. a4 {[%clk 01:14:12]} {[%emt 00:04:53]} Qc7
{[%clk 01:18:49]} {[%emt 00:03:02]} 15. Rfe1 {[%clk 01:02:06]} {[%emt
00:12:36]} Nf5 {[%clk 01:15:13]} {[%emt 00:04:08]} 16. Nf3 {[%clk 00:53:38]}
{[%emt 00:08:57]} Qb6 {[%clk 01:03:29]} {[%emt 00:12:14]} 17. Qd2 {[%clk
00:42:46]} {[%emt 00:11:21]} Rc8 {[%clk 00:49:33]} {[%emt 00:14:27]} 18. a5
{[%clk 00:38:07]} {[%emt 00:05:09]} Qb4 {[%clk 00:47:10]} {[%emt 00:02:52]} 19.
Ne4 {[%clk 00:27:02]} {[%emt 00:11:35]} Qxb2 {[%clk 00:36:09]} {[%emt
00:11:32]} 20. Nxc5 {[%clk 00:23:46]} {[%emt 00:03:46]} Rxc5 {[%clk 00:36:08]}
{[%emt 00:00:31]} 21. Reb1 {[%clk 00:16:32]} {[%emt 00:07:44]} Qxc2 {[%clk
00:35:09]} {[%emt 00:01:29]} 22. Qg5 {[%clk 00:16:27]} {[%emt 00:00:35]} Rxa5
{[%clk 00:30:06]} {[%emt 00:05:34]} 23. Rc1 {[%clk 00:11:57]} {[%emt 00:04:59]}
Rxa1 {[%clk 00:29:35]} {[%emt 00:01:02]} 24. Rxa1 {[%clk 00:12:22]} {[%emt
00:00:05]} Qc7 {[%clk 00:28:16]} {[%emt 00:01:48]} 25. Rc1 {[%clk 00:11:59]}
{[%emt 00:00:52]} Qd8 {[%clk 00:28:35]} {[%emt 00:00:11]} 26. Qf4 {[%clk
00:12:07]} {[%emt 00:00:22]} O-O {[%clk 00:28:15]} {[%emt 00:00:51]} 27. Qb4
{[%clk 00:12:03]} {[%emt 00:00:34]} Qd7 {[%clk 00:27:27]} {[%emt 00:01:18]} 28.
g4 {[%clk 00:10:55]} {[%emt 00:01:38]} hxg4 {[%clk 00:26:19]} {[%emt 00:01:38]}
29. Qxg4 {[%clk 00:11:18]} {[%emt 00:00:06]} Rc8 {[%clk 00:26:04]} {[%emt
00:00:46]} 30. Rd1 {[%clk 00:11:27]} {[%emt 00:00:20]} Qe7 {[%clk 00:24:45]}
{[%emt 00:01:49]} 31. Ng5 {[%clk 00:05:05]} {[%emt 00:06:52]} Rc4 {[%clk
00:24:06]} {[%emt 00:01:10]} 32. f4 {[%clk 00:04:55]} {[%emt 00:00:40]} Qc5+
{[%clk 00:22:33]} {[%emt 00:02:03]} 33. Kh1 {[%clk 00:05:10]} {[%emt 00:00:15]}
Qf2 {[%clk 00:22:32]} {[%emt 00:00:31]} 34. Nf3 {[%clk 00:05:11]} {[%emt
00:00:28]} Ng3+ {[%clk 00:22:48]} {[%emt 00:00:15]} 0-1

[Event "The Allsvenskan 2024/25 Div I 3: SS Manhem II - Lidkopings SS"]
[Site "Goteborgs Schackcentrum, Vegatan 20, Gothenburg, Sweden"]
[Date "2024.11.17"]
[Round "1.7"]
[White "Koski, Viljo"]
[Black "Herrman, Jan"]
[Result "1-0"]
[TimeControl "90 minutes for 40 moves + 30 minutes for the rest of the game + 30 seconds per move from move one."]
[WhiteFideId "1717553"]
[BlackFideId "1731882"]
[WhiteElo "1919"]
[BlackElo "1918"]

1. d4 {[%clk 01:30:43]} {[%emt 00:00:16]} Nf6 {[%clk 01:30:55]} {[%emt
00:00:06]} 2. c4 {[%clk 01:31:04]} {[%emt 00:00:08]} c5 {[%clk 01:30:28]}
{[%emt 00:00:57]} 3. Nf3 {[%clk 01:31:15]} {[%emt 00:00:20]} cxd4 {[%clk
01:30:47]} {[%emt 00:00:11]} 4. Nxd4 {[%clk 01:31:34]} {[%emt 00:00:11]} Nc6
{[%clk 01:31:10]} {[%emt 00:00:07]} 5. Nc3 {[%clk 01:31:09]} {[%emt 00:00:55]}
e6 {[%clk 01:27:51]} {[%emt 00:03:49]} 6. a3 {[%clk 01:29:23]} {[%emt
00:02:16]} Be7 {[%clk 01:27:53]} {[%emt 00:00:27]} 7. e4 {[%clk 01:29:29]}
{[%emt 00:00:25]} O-O {[%clk 01:27:42]} {[%emt 00:00:40]} 8. Be2 {[%clk
01:29:46]} {[%emt 00:00:14]} Qc7 {[%clk 01:25:15]} {[%emt 00:02:57]} 9. O-O
{[%clk 01:27:20]} {[%emt 00:02:55]} a6 {[%clk 01:25:29]} {[%emt 00:00:16]} 10.
Bg5 {[%clk 01:26:37]} {[%emt 00:01:13]} d6 {[%clk 01:23:58]} {[%emt 00:02:01]}
11. Qd2 {[%clk 01:23:07]} {[%emt 00:04:01]} b6 {[%clk 01:18:51]} {[%emt
00:05:36]} 12. Rac1 {[%clk 01:22:03]} {[%emt 00:01:35]} Bb7 {[%clk 01:18:59]}
{[%emt 00:00:22]} 13. Nxc6 {[%clk 01:16:52]} {[%emt 00:05:40]} Bxc6 {[%clk
01:18:37]} {[%emt 00:00:52]} 14. f3 {[%clk 01:16:45]} {[%emt 00:00:37]} Rac8
{[%clk 01:13:37]} {[%emt 00:05:30]} 15. Rfd1 {[%clk 01:16:07]} {[%emt
00:01:09]} Rfd8 {[%clk 01:13:49]} {[%emt 00:00:17]} 16. Qe1 {[%clk 01:14:06]}
{[%emt 00:02:31]} Qb7 {[%clk 01:11:21]} {[%emt 00:02:58]} 17. Be3 {[%clk
01:08:27]} {[%emt 00:06:10]} b5 {[%clk 01:09:31]} {[%emt 00:02:19]} 18. cxb5
{[%clk 01:07:40]} {[%emt 00:01:17]} Bxb5 {[%clk 01:09:08]} {[%emt 00:00:53]} 19.
Nxb5 {[%clk 01:03:04]} {[%emt 00:05:06]} axb5 {[%clk 01:09:30]} {[%emt
00:00:08]} 20. Qa5 {[%clk 00:59:24]} {[%emt 00:04:11]} Rb8 {[%clk 01:08:03]}
{[%emt 00:01:56]} 21. Rc7 {[%clk 00:59:08]} {[%emt 00:00:46]} 1-0

[Event "The Allsvenskan 2024/25 Div I 3: SS Manhem II - Lidkopings SS"]
[Site "Goteborgs Schackcentrum, Vegatan 20, Gothenburg, Sweden"]
[Date "2024.11.17"]
[Round "1.8"]
[White "Abrahamsson, Patrik"]
[Black "Isacsson, Jorgen"]
[Result "1-0"]
[TimeControl "90 minutes for 40 moves + 30 minutes for the rest of the game + 30 seconds per move from move one."]
[WhiteFideId "1716484"]
[BlackFideId "1738399"]
[WhiteElo "1959"]
[BlackElo "1812"]

1. e4 {[%clk 01:30:56]} {[%emt 00:00:03]} d6 {[%clk 01:30:48]} {[%emt
00:00:13]} 2. d4 {[%clk 01:31:17]} {[%emt 00:00:09]} Nf6 {[%clk 01:31:13]}
{[%emt 00:00:05]} 3. Nc3 {[%clk 01:31:36]} {[%emt 00:00:11]} g6 {[%clk
01:31:38]} {[%emt 00:00:05]} 4. f4 {[%clk 01:30:37]} {[%emt 00:01:29]} Bg7
{[%clk 01:31:51]} {[%emt 00:00:17]} 5. Nf3 {[%clk 01:31:00]} {[%emt 00:00:06]}
O-O {[%clk 01:31:13]} {[%emt 00:01:09]} 6. Be2 {[%clk 01:29:04]} {[%emt
00:02:25]} c5 {[%clk 01:25:38]} {[%emt 00:06:06]} 7. d5 {[%clk 01:24:15]}
{[%emt 00:05:18]} b6 {[%clk 01:17:50]} {[%emt 00:08:19]} 8. O-O {[%clk
01:20:23]} {[%emt 00:04:22]} Ba6 {[%clk 01:14:32]} {[%emt 00:03:47]} 9. a4
{[%clk 01:14:53]} {[%emt 00:06:01]} Bxe2 {[%clk 01:08:59]} {[%emt 00:06:03]} 10.
Qxe2 {[%clk 01:09:01]} {[%emt 00:06:20]} a6 {[%clk 01:09:20]} {[%emt 00:00:10]}
11. Rd1 {[%clk 01:03:27]} {[%emt 00:06:04]} h6 {[%clk 01:04:34]} {[%emt
00:05:17]} 12. Ra3 {[%clk 00:51:42]} {[%emt 00:12:15]} Qc7 {[%clk 01:01:12]}
{[%emt 00:03:51]} 13. e5 {[%clk 00:36:56]} {[%emt 00:15:16]} Ne8 {[%clk
00:54:48]} {[%emt 00:06:55]} 14. e6 {[%clk 00:25:43]} {[%emt 00:11:43]} Nf6
{[%clk 00:53:00]} {[%emt 00:02:18]} 15. exf7+ {[%clk 00:20:22]} {[%emt
00:05:49]} Rxf7 {[%clk 00:53:02]} {[%emt 00:00:31]} 16. Nh4 {[%clk 00:20:24]}
{[%emt 00:00:27]} Nbd7 {[%clk 00:42:56]} {[%emt 00:10:35]} 17. Nxg6 {[%clk
00:20:17]} {[%emt 00:00:37]} Nf8 {[%clk 00:41:38]} {[%emt 00:01:49]} 18. Nxf8
{[%clk 00:18:38]} {[%emt 00:02:08]} Raxf8 {[%clk 00:40:59]} {[%emt 00:01:09]}
19. Qxa6 {[%clk 00:18:01]} {[%emt 00:01:08]} Qd7 {[%clk 00:40:46]} {[%emt
00:00:43]} 20. Qe2 {[%clk 00:17:37]} {[%emt 00:00:52]} Qf5 {[%clk 00:40:51]}
{[%emt 00:00:26]} 21. Qd3 {[%clk 00:15:12]} {[%emt 00:02:55]} Qg4 {[%clk
00:35:06]} {[%emt 00:06:15]} 22. Ne2 {[%clk 00:09:27]} {[%emt 00:06:15]} Nh5
{[%clk 00:31:45]} {[%emt 00:03:52]} 23. Qf3 {[%clk 00:07:18]} {[%emt 00:02:39]}
Qg6 {[%clk 00:29:00]} {[%emt 00:03:15]} 24. Qd3 {[%clk 00:04:21]} {[%emt
00:03:26]} Qg4 {[%clk 00:26:38]} {[%emt 00:02:53]} 25. Rf1 {[%clk 00:03:18]}
{[%emt 00:01:33]} Nf6 {[%clk 00:26:54]} {[%emt 00:00:13]} 26. c4 {[%clk
00:03:10]} {[%emt 00:00:39]} Qh5 {[%clk 00:26:35]} {[%emt 00:00:50]} 27. Ng3
{[%clk 00:02:52]} {[%emt 00:00:46]} Qg4 {[%clk 00:26:47]} {[%emt 00:00:18]} 28.
h3 {[%clk 00:01:59]} {[%emt 00:01:22]} Qd7 {[%clk 00:26:33]} {[%emt 00:00:45]}
29. b3 {[%clk 00:01:10]} {[%emt 00:01:19]} Nh7 {[%clk 00:26:30]} {[%emt
00:00:34]} 30. Ra2 {[%clk 00:01:26]} {[%emt 00:00:14]} Bd4+ {[%clk 00:24:28]}
{[%emt 00:02:32]} 31. Kh1 {[%clk 00:01:17]} {[%emt 00:00:39]} e5 {[%clk
00:24:49]} {[%emt 00:00:09]} 32. dxe6 {[%clk 00:01:05]} {[%emt 00:00:42]} Qxe6
{[%clk 00:25:14]} {[%emt 00:00:05]} 33. Re2 {[%clk 00:00:41]} {[%emt 00:00:54]}
Qf6 {[%clk 00:23:49]} {[%emt 00:01:55]} 34. Ne4 {[%clk 00:00:50]} {[%emt
00:00:20]} Qg6 {[%clk 00:23:13]} {[%emt 00:01:07]} 35. Qg3 {[%clk 00:01:05]}
{[%emt 00:00:15]} Qxg3 {[%clk 00:22:17]} {[%emt 00:01:25]} 36. Nxg3 {[%clk
00:01:33]} {[%emt 00:00:02]} Be5 {[%clk 00:22:17]} {[%emt 00:00:32]} 37. Ree1
{[%clk 00:01:09]} {[%emt 00:00:53]} Bxf4 {[%clk 00:21:21]} {[%emt 00:01:25]} 38.
Bxf4 {[%clk 00:01:28]} {[%emt 00:00:12]} Rxf4 {[%clk 00:21:51]} 39. Rxf4 {[%clk
00:01:22]} {[%emt 00:00:36]} Rxf4 {[%clk 00:22:20]} {[%emt 00:00:02]} 40. Ne4
{[%clk 00:01:01]} {[%emt 00:00:50]} Ng5 {[%clk 00:20:53]} {[%emt 00:01:57]} 41.
Nxd6 {[%clk 00:30:11]} {[%emt 00:01:20]} Rd4 {[%clk 00:51:21]} {[%emt
00:00:02]} 42. Re8+ {[%clk 00:29:50]} {[%emt 00:00:51]} Kh7 {[%clk 00:51:05]}
{[%emt 00:00:46]} 43. Nc8 {[%clk 00:26:54]} {[%emt 00:03:25]} Rd3 {[%clk
00:51:34]} {[%emt 00:00:02]} 44. Nxb6 {[%clk 00:26:51]} {[%emt 00:00:33]} Rxb3
{[%clk 00:52:03]} {[%emt 00:00:01]} 45. a5 {[%clk 00:27:05]} {[%emt 00:00:16]}
Nf7 {[%clk 00:51:21]} {[%emt 00:01:12]} 46. Nd7 {[%clk 00:25:48]} {[%emt
00:01:47]} Nd6 {[%clk 00:50:48]} {[%emt 00:01:03]} 47. Re7+ {[%clk 00:26:05]}
{[%emt 00:00:13]} Kg8 {[%clk 00:50:29]} {[%emt 00:00:49]} 48. Nxc5 {[%clk
00:25:59]} {[%emt 00:00:36]} Rb1+ {[%clk 00:50:54]} {[%emt 00:00:05]} 49. Kh2
{[%clk 00:26:17]} {[%emt 00:00:11]} Nxc4 {[%clk 00:51:23]} 50. a6 {[%clk
00:26:33]} {[%emt 00:00:16]} Nd6 {[%clk 00:50:02]} {[%emt 00:01:51]} 51. Rd7
{[%clk 00:24:10]} {[%emt 00:02:52]} Nf7 {[%clk 00:49:56]} {[%emt 00:00:37]} 52.
Rb7 {[%clk 00:22:46]} {[%emt 00:01:54]} Ra1 {[%clk 00:49:52]} {[%emt 00:00:35]}
53. a7 {[%clk 00:23:05]} {[%emt 00:00:10]} Kg7 {[%clk 00:50:11]} {[%emt
00:00:10]} 54. h4 {[%clk 00:20:30]} {[%emt 00:03:05]} Kg6 {[%clk 00:50:16]}
{[%emt 00:00:26]} 55. h5+ {[%clk 00:20:33]} {[%emt 00:00:27]} Kf6 {[%clk
00:50:03]} {[%emt 00:00:44]} 56. Nd7+ {[%clk 00:20:03]} {[%emt 00:00:59]} Ke6
{[%clk 00:50:25]} {[%emt 00:00:08]} 57. Nb6 {[%clk 00:20:09]} {[%emt 00:00:24]}
Nd8 {[%clk 00:50:36]} {[%emt 00:00:17]} 58. Rh7 Kd5 {[%clk 00:50:36]} 1-0